bitfinex/quotes_ETHUSD_20240827
["timestamp","ask_amount","ask_price","bid_price","bid_amount"]
[1724716802515,1.55973374,2685.2,2684.9,0.59605175]
[1724716803016,5.83463004,2685.2,2684.9,0.59605175]
[1724716803633,1.55973374,2685.0,2684.9,0.06336175]
[1724716803855,4.43839674,2685.0,2684.9,0.06336175]
[1724716804711,1.55973374,2684.7,2683.7,1.55973374]
[1724716804917,2.2952,2684.6,2683.8,0.34979895]
[1724716805165,2.2952,2684.6,2683.7,1.90953269]
[1724716805462,1.55973374,2684.5,2683.8,0.20950811]
[1724716805646,2.2952,2684.8,2684.0,1.55973374]
[1724716805848,7.28,2685.1,2684.6,1.55973374]
[1724716806034,2.2952,2685.3,2684.6,1.55973374]
[1724716806035,2.2952,2685.3,2684.7,0.07448779]
[1724716806662,2.2952,2685.3,2684.8,0.55]
[1724716806849,2.2952,2685.3,2684.6,0.55]
[1724716806850,2.95273223,2685.3,2684.6,0.55]
[1724716807052,2.95273223,2685.3,2684.7,0.07448781]
[1724716807218,2.95273223,2685.3,2684.8,0.55]
[1724716807852,1.55973374,2685.2,2684.8,0.55]
[1724716808438,1.55973374,2685.2,2684.7,3.0]
[1724716808439,2.2952,2684.9,2684.2,2.75829895]
[1724716808652,1.55973374,2684.6,2684.3,0.55]
[1724716808833,2.2952,2684.5,2684.1,0.55]
[1724716809032,1.55973374,2684.6,2684.1,0.55]
[1724716809330,2.2952,2685.1,2684.5,1.55973374]
[1724716809535,5.01558855,2685.5,2684.9,1.55973374]
[1724716809788,5.01558855,2685.5,2685.0,0.55]
[1724716810004,5.01558855,2685.5,2684.8,0.55]
[1724716810282,5.01558855,2685.5,2684.8,1.05351069]
[1724716810492,5.01558855,2685.5,2684.9,0.07447697]
[1724716810789,1.55973374,2685.4,2685.0,0.55]
[1724716810938,1.55973374,2685.2,2684.8,3.55]
[1724716811138,1.55973374,2685.2,2684.8,0.55]
[1724716812150,2.318,2685.1,2684.8,0.55]
[1724716812355,0.2318,2685.0,2684.8,0.55]
[1724716812837,2.318,2684.9,2684.4,3.0]
[1724716813040,0.77677627,2684.5,2683.9,2.4391]
[1724716813340,0.77677627,2684.4,2683.9,2.4391]
[1724716813534,0.77677627,2684.4,2683.9,3.58912397]
[1724716813735,0.77677627,2684.3,2683.9,3.58912397]
[1724716814200,0.77677627,2684.4,2683.9,3.58912397]
[1724716814351,0.77677627,2684.5,2684.0,6.74563857]
[1724716814553,0.77677627,2684.6,2684.4,2.4391]
[1724716814887,1.94160485,2685.0,2684.5,0.61847386]
[1724716814888,0.77677627,2684.9,2684.5,0.61847386]
[1724716815043,0.77677627,2685.0,2684.5,0.61847386]
[1724716815384,0.77677627,2685.1,2684.7,2.4391]
[1724716815606,0.77677627,2685.2,2684.8,0.62447819]
[1724716815793,0.77677627,2685.2,2684.8,0.55]
[1724716815956,0.77677627,2685.1,2684.8,4.22347386]
[1724716816285,1.16516441,2685.2,2684.8,0.55]
[1724716816286,0.77677627,2684.9,2684.8,0.55]
[1724716816597,1.16516441,2684.9,2684.6,0.55]
[1724716816922,0.77658762,2684.7,2684.6,0.55]
[1724716817035,1.16516441,2684.7,2684.6,0.55]
[1724716817235,1.5534775,2684.8,2684.7,0.05290187]
[1724716817440,2.29111309,2684.8,2684.1,2.4391]
[1724716817641,0.77641497,2684.5,2683.9,2.4391]
[1724716817899,0.77641497,2684.4,2684.2,0.05295969]
[1724716818038,0.77641497,2684.4,2683.9,2.4391]
[1724716818039,0.77641497,2684.3,2683.9,2.4391]
[1724716818241,0.77641497,2684.3,2683.6,2.4391]
[1724716818483,0.77641497,2684.3,2683.7,0.29162459]
[1724716819341,0.77641497,2684.3,2683.7,3.29162459]
[1724716819541,0.77641497,2684.4,2683.7,3.29162459]
[1724716819834,0.77641497,2684.4,2683.8,0.55]
[1724716820038,0.77641497,2684.3,2683.8,0.55]
[1724716820301,1.16462246,2684.5,2683.9,0.38416246]
[1724716820302,0.77641497,2684.4,2683.9,0.38416246]
[1724716820465,0.77641497,2684.4,2684.0,0.55]
[1724716821555,0.77641497,2684.5,2684.0,0.55]
[1724716821891,0.77641497,2684.4,2684.0,0.55]
[1724716822402,1.16462246,2684.6,2684.0,0.55]
[1724716822403,0.77641497,2684.5,2684.0,0.55]
[1724716823374,0.77641497,2684.4,2684.0,0.55]
[1724716823845,1.16462246,2684.6,2684.0,0.55]
[1724716823846,0.77641497,2684.5,2684.0,0.55]
[1724716824898,0.77641497,2684.5,2684.0,2.8784]
[1724716825100,0.77641497,2684.5,2684.1,3.32625625]
[1724716825307,0.77641497,2684.5,2684.2,0.55]
[1724716825646,0.77641497,2684.6,2684.2,0.55]
[1724716825880,0.77641497,2684.7,2684.4,2.3284]
[1724716826085,0.77641497,2684.9,2684.5,0.55]
[1724716826252,0.77641497,2684.9,2684.6,0.6623253]
[1724716826453,0.77641497,2685.0,2684.7,0.55]
[1724716826694,0.77641497,2685.0,2684.8,0.07448423]
[1724716826870,0.77641497,2685.0,2684.9,0.55]
[1724716827199,0.77641497,2685.0,2684.5,3.0]
[1724716827200,1.55282995,2685.0,2684.5,3.0]
[1724716827419,0.77561954,2684.7,2684.3,3.0]
[1724716827580,0.77561954,2684.6,2683.9,0.38416246]
[1724716827762,0.77561954,2684.4,2683.9,0.38416246]
[1724716828155,0.77561954,2684.4,2683.5,2.3284]
[1724716828589,0.77561954,2684.2,2683.1,2.3284]
[1724716828913,0.77561954,2684.2,2683.1,3.58731724]
[1724716829393,0.77561954,2684.2,2683.1,2.8055459]
[1724716829722,0.77561954,2684.2,2683.2,0.73329558]
[1724716829875,0.77561954,2684.2,2683.3,0.55]
[1724716830206,3.65142931,2684.3,2683.3,0.55]
[1724716830207,0.77561954,2684.1,2683.9,3.72591]
[1724716830374,0.77561954,2684.0,2683.7,3.72611]
[1724716830895,0.77561954,2684.1,2683.7,3.72611]
[1724716831299,0.77561954,2684.1,2683.7,3.72614]
[1724716831624,1.59086843,2684.1,2683.8,0.05142414]
[1724716831780,3.26361954,2684.0,2683.8,0.05142414]
[1724716832121,0.6945304,2683.9,2683.5,3.72639]
[1724716832317,0.6945304,2683.9,2683.3,3.72667]
[1724716832461,3.65142931,2684.0,2683.6,0.05142414]
[1724716832661,3.65142931,2684.0,2683.6,3.72622]
[1724716832904,3.65142931,2684.0,2683.7,0.05142414]
[1724716833298,2.488,2684.0,2683.8,3.72595]
[1724716833816,2.488,2684.0,2683.6,3.72626]
[1724716833817,2.488,2684.0,2683.9,0.60142414]
[1724716836483,3.65142931,2684.3,2683.9,0.60142414]
[1724716837013,7.37683931,2684.3,2683.9,0.60142414]
[1724716837225,1.16342931,2684.2,2683.9,0.60142414]
[1724716837431,2.488,2684.1,2683.9,0.60142414]
[1724716837724,2.488,2684.1,2683.9,0.05142414]
[1724716838122,2.488,2684.1,2683.6,3.72621]
[1724716838415,2.488,2684.1,2683.7,0.55]
[1724716838649,2.488,2684.1,2683.7,0.60200208]
[1724716840222,3.59825393,2684.1,2683.7,0.60200208]
[1724716840739,2.4562,2684.0,2683.7,0.60200208]
[1724716840903,6.182,2684.0,2683.7,0.60200208]
[1724716841229,2.4562,2684.0,2683.7,4.32808208]
[1724716841559,7.28,2684.5,2684.3,3.72527]
[1724716841848,1.16342931,2685.2,2684.9,3.72444]
[1724716841982,0.77412564,2685.2,2684.9,3.72444]
[1724716842180,0.77412564,2685.2,2685.1,3.72425]
[1724716842381,0.77412564,2685.4,2685.1,3.72425]
[1724716842644,0.77412564,2685.5,2685.2,0.55]
[1724716842780,1.12316413,2685.5,2685.2,0.6025511]
[1724716843182,1.12316413,2685.5,2685.2,0.0525511]
[1724716843500,1.12316413,2685.5,2684.9,3.72448]
[1724716843501,0.77412564,2685.4,2684.9,3.72448]
[1724716843706,3.23032564,2685.4,2685.3,0.0525511]
[1724716844013,3.724,2685.3,2685.0,0.55]
[1724716844215,1.62077073,2685.3,2684.8,0.55]
[1724716844619,0.84665834,2685.3,2684.9,3.72451]
[1724716844819,1.62077073,2685.3,2685.0,0.55]
[1724716845024,0.77411239,2685.5,2685.3,3.72397]
[1724716845201,0.77411239,2685.6,2685.4,0.55]
[1724716845391,0.77411239,2685.6,2685.4,0.5127547]
[1724716845933,0.77411239,2685.6,2685.2,3.72411]
[1724716846437,0.77411239,2685.6,2685.3,0.05197319]
[1724716846438,0.77411239,2685.5,2685.3,0.05197319]
[1724716846588,0.19375417,2685.4,2685.3,0.05197319]
[1724716846790,0.77411239,2685.5,2685.0,3.72426]
[1724716847041,0.77411239,2685.6,2685.3,0.05197319]
[1724716847219,0.77411239,2685.7,2685.1,2.4853]
[1724716847418,0.77411239,2686.0,2685.6,3.72356]
[1724716847626,0.77411239,2686.1,2685.9,3.72302]
[1724716847804,0.77411239,2686.1,2685.7,0.6244562]
[1724716847805,0.77411239,2686.2,2685.8,3.72316]
[1724716848153,0.96786656,2686.2,2686.0,0.05058657]
[1724716848457,0.96786656,2686.2,2685.9,0.05058657]
[1724716848607,2.32694234,2686.5,2686.1,3.72276]
[1724716848935,1.16342931,2686.6,2686.2,0.55]
[1724716848936,0.77411239,2686.6,2686.2,0.55]
[1724716849143,0.77411239,2686.6,2686.1,0.55]
[1724716849305,0.77411239,2686.6,2686.3,0.05058657]
[1724716849509,0.81157717,2686.5,2686.3,0.05058657]
[1724716849817,0.81157717,2686.5,2686.4,0.05058657]
[1724716850027,5.30799956,2686.5,2686.1,0.55]
[1724716850188,5.30799956,2686.5,2686.4,0.05058657]
[1724716850390,1.58568956,2686.5,2685.9,4.27314]
[1724716850623,1.01936089,2686.4,2685.9,4.27314]
[1724716851445,3.72219,2686.6,2685.9,4.27314]
[1724716851859,4.49630239,2686.6,2685.9,4.27314]
[1724716852524,3.72219,2686.6,2685.9,4.27314]
[1724716852734,3.72236,2686.5,2685.9,4.27314]
[1724716853242,3.72219,2686.6,2685.9,4.27314]
[1724716853401,0.69525024,2686.5,2686.0,3.723]
[1724716853606,0.69525024,2686.5,2686.1,0.55]
[1724716854190,0.69525024,2686.5,2685.8,3.72319]
[1724716854391,3.72255,2686.4,2685.8,3.72319]
[1724716854592,3.72255,2686.4,2685.9,4.27306]
[1724716854830,0.44178002,2686.3,2685.9,4.27306]
[1724716855336,0.44178002,2686.3,2686.0,3.72291]
[1724716855546,0.69525024,2686.5,2686.1,0.55]
[1724716856546,0.69525024,2686.5,2685.3,11.19863036]
[1724716856547,2.4538,2686.1,2685.6,3.72346]
[1724716856700,2.4538,2686.1,2685.7,0.55]
[1724716858904,3.723,2686.0,2685.4,3.72375]
[1724716859105,3.723,2686.0,2685.5,4.27362]
[1724716859431,0.61768,2685.9,2685.5,4.27362]
[1724716860132,6.17669,2686.1,2685.6,3.72354]
[1724716860329,2.4538,2686.1,2685.6,3.72354]
[1724716860529,2.4538,2686.1,2685.7,4.27333]
[1724716860732,2.4538,2686.1,2685.7,0.55]
[1724716861418,2.4538,2686.1,2685.8,0.05006684]
[1724716861746,3.071441,2686.1,2685.9,0.05006684]
[1724716863210,3.071441,2686.1,2685.7,0.55]
[1724716863419,3.071441,2686.1,2686.0,0.05006684]
[1724716863620,3.071441,2686.1,2685.7,0.55]
[1724716863821,6.794301,2686.1,2686.0,0.04998024]
[1724716864046,6.794301,2686.1,2685.7,0.55]
[1724716864047,3.723,2686.0,2685.7,0.55]
[1724716864351,0.6794441,2685.9,2685.5,4.27366]
[1724716864547,0.6794441,2685.9,2685.6,3.72351]
[1724716864747,3.071441,2686.1,2685.7,0.55]
[1724716865347,3.071441,2686.1,2685.7,4.2734]
[1724716866078,3.071441,2686.1,2685.7,0.55]
[1724716867097,6.794341,2686.1,2685.7,0.55]
[1724716867270,6.794341,2686.1,2685.4,3.72371]
[1724716867271,3.72306,2686.0,2685.4,3.72371]
[1724716867470,4.4024941,2686.0,2685.5,0.55]
[1724716867808,4.4024941,2686.0,2685.5,4.27369]
[1724716867942,4.4024941,2686.0,2685.5,0.55]
[1724716868146,3.72316,2685.9,2685.5,0.55]
[1724716868380,0.44025941,2685.8,2685.5,0.55]
[1724716868889,4.4024441,2686.0,2685.5,0.55]
[1724716869288,3.72319,2685.9,2685.5,0.55]
[1724716869486,0.6794341,2686.0,2685.5,4.27369]
[1724716870090,6.17674,2686.1,2685.8,3.72323]
[1724716870091,2.4538,2686.1,2685.8,3.72323]
[1724716870384,2.495,2686.4,2685.9,4.27302]
[1724716870545,2.495,2686.4,2685.9,0.55]
[1724716870546,6.21757,2686.4,2685.9,0.55]
[1724716871762,3.72261,2686.3,2685.9,0.55]
[1724716871982,0.621761,2686.2,2685.9,0.55]
[1724716872899,3.72309,2686.0,2685.4,3.72372]
[1724716873058,3.72309,2686.0,2685.5,0.55]
[1724716873242,3.72309,2686.0,2685.5,4.27362]
[1724716874004,3.72309,2686.0,2685.5,0.55]
[1724716874214,4.344969,2685.9,2685.5,0.55]
[1724716874505,2.495,2685.7,2685.5,0.55]
[1724716874718,2.495,2685.7,2685.3,6.72392]
[1724716874719,2.495,2685.7,2685.4,0.55]
[1724716875510,9.96103029,2685.7,2685.4,0.55]
[1724716875841,6.23753029,2685.7,2685.3,0.55]
[1724716876121,7.29579322,2685.7,2685.3,0.55]
[1724716876483,7.29579322,2685.7,2685.4,0.05015026]
[1724716877079,3.55326293,2685.7,2685.4,0.05015026]
[1724716877320,7.27669293,2685.7,2685.4,0.05015026]
[1724716877499,3.55326293,2685.7,2685.4,0.05015026]
[1724716878682,0.72765529,2685.6,2685.4,0.05015026]
[1724716879620,0.621809,2685.9,2685.4,0.05015026]
[1724716879786,13.88676874,2686.1,2685.6,3.72346]
[1724716880122,13.88676874,2686.1,2685.7,0.55]
[1724716880423,13.88676874,2686.1,2685.8,0.05027297]
[1724716880586,13.88676874,2686.1,2685.7,0.55]
[1724716880917,1.52826421,2686.0,2685.9,0.05027297]
[1724716881153,1.52826421,2686.0,2685.7,0.55]
[1724716881542,1.52826421,2686.0,2685.8,0.05027297]
[1724716881716,1.52826421,2686.0,2685.7,0.55]
[1724716881922,5.25128421,2686.0,2685.8,0.05027297]
[1724716882121,5.25128421,2686.0,2685.7,0.55]
[1724716882323,5.25128421,2686.0,2685.8,0.04903146]
[1724716882518,5.25128421,2686.0,2685.5,0.55]
[1724716882725,5.25128421,2686.0,2685.6,0.04903146]
[1724716882919,5.25128421,2686.0,2685.7,0.55]
[1724716883324,5.25128421,2686.0,2685.8,0.04903146]
[1724716883517,5.25128421,2686.0,2685.5,4.27365]
[1724716883518,6.0253966,2686.0,2685.5,4.27365]
[1724716883723,6.0253966,2686.0,2685.6,0.04903146]
[1724716883949,6.0253966,2686.0,2685.7,0.55]
[1724716884350,0.77411239,2686.0,2685.8,0.04903146]
[1724716884534,7.77019805,2686.1,2685.6,7.99701]
[1724716884535,0.77411239,2685.9,2685.6,7.99701]
[1724716884743,0.77411239,2685.9,2685.7,0.0492552]
[1724716885544,0.77411239,2685.8,2685.7,0.0492552]
[1724716885977,0.77411239,2685.8,2685.7,0.5992552]
[1724716886473,1.16342931,2685.8,2685.7,0.5992552]
[1724716887578,1.55282995,2685.9,2685.7,0.5992552]
[1724716888082,1.16419562,2685.8,2685.7,0.5992552]
[1724716888276,0.77616594,2685.8,2685.7,1.03897492]
[1724716888517,0.77616594,2685.8,2685.7,4.76239492]
[1724716889356,1.16419562,2685.9,2685.8,3.72328]
[1724716889542,1.16419562,2685.9,2685.8,4.32233309]
[1724716889543,0.77642572,2685.9,2685.8,4.32233309]
[1724716890098,1.16419562,2686.0,2685.9,3.72314]
[1724716890099,0.77642572,2686.0,2685.9,3.72314]
[1724716890244,0.77642572,2686.0,2685.9,5.35265928]
[1724716890674,0.77642572,2686.0,2685.9,5.40171237]
[1724716890879,0.77642572,2686.0,2685.9,9.12485237]
[1724716891084,0.38881874,2686.1,2686.0,7.446]
[1724716891085,0.77642572,2686.1,2686.0,7.446]
[1724716891381,0.77659543,2686.2,2686.1,7.44572]
[1724716891602,0.77659543,2686.2,2686.1,8.41312181]
[1724716891893,0.77659543,2686.2,2686.1,8.96312181]
[1724716892058,0.77659543,2686.2,2686.1,9.01190067]
[1724716892284,0.77659543,2686.3,2686.2,7.44546]
[1724716892444,0.77659543,2686.3,2686.2,7.99546]
[1724716892809,1.16419562,2686.4,2686.3,3.72259]
[1724716893091,1.16419562,2686.4,2686.3,4.27259]
[1724716893385,1.16419562,2686.4,2686.3,4.32136886]
[1724716894184,1.16419562,2686.4,2686.3,0.59877886]
[1724716894680,0.77651879,2686.9,2686.3,6.65120915]
[1724716894891,0.77651879,2686.9,2686.8,7.44378]
[1724716895070,0.77651879,2687.1,2686.9,3.72176]
[1724716895279,0.77651879,2687.1,2686.7,6.05243029]
[1724716895280,0.77651879,2687.2,2687.1,3.72148]
[1724716895581,1.16419562,2687.3,2687.1,0.55]
[1724716895751,1.16419562,2687.3,2687.0,7.44308]
[1724716895949,0.77619978,2687.1,2687.0,3.72153]
[1724716896162,0.77619978,2687.2,2687.0,4.27153]
[1724716896401,0.77619978,2687.2,2687.0,3.72153]
[1724716896694,0.77619978,2687.2,2687.1,0.55]
[1724716896901,0.77619978,2687.3,2687.1,5.09185829]
[1724716897084,0.77619978,2687.3,2687.1,8.81319829]
[1724716897260,0.77619978,2687.5,2687.1,5.070668]
[1724716897465,0.7753426,2687.5,2687.1,4.27134]
[1724716898175,3.1969426,2687.6,2687.1,4.27134]
[1724716898509,0.7753426,2687.5,2687.1,4.27134]
[1724716899285,3.1969426,2687.6,2687.1,4.27134]
[1724716899480,0.7753426,2687.8,2687.4,3.72098]
[1724716899890,6.9173226,2687.9,2687.3,3.79550443]
[1724716900201,6.9173226,2687.9,2687.4,0.55]
[1724716901191,6.14198,2687.9,2687.4,0.55]
[1724716901506,6.9173226,2687.9,2687.4,0.55]
[1724716901712,6.9173226,2687.9,2687.4,0.94731205]
[1724716901713,3.1969426,2687.9,2687.4,0.94731205]
[1724716902109,3.1969426,2687.9,2687.4,4.66829205]
[1724716902320,2.4216,2687.9,2687.4,0.5127616]
[1724716902673,2.4216,2687.9,2687.5,3.79533449]
[1724716903168,2.4216,2687.9,2687.6,3.72074]
[1724716903635,2.4216,2687.9,2687.7,3.72061]
[1724716904770,2.4216,2687.9,2687.6,3.72076]
[1724716904976,2.4216,2687.9,2687.7,0.55]
[1724716906398,2.4216,2687.9,2687.6,0.55]
[1724716906792,2.4216,2687.9,2687.6,4.27076]
[1724716906970,2.4216,2687.9,2687.6,0.55]
[1724716907175,2.4216,2687.9,2687.7,0.04823766]
[1724716910197,6.14172,2688.1,2687.7,0.04823766]
[1724716911320,3.72045,2687.9,2687.7,0.04823766]
[1724716911619,7.44092,2687.9,2687.7,0.04823766]
[1724716911834,3.72045,2687.9,2687.7,0.04823766]
[1724716914000,3.72051,2687.8,2687.7,0.04823766]
[1724716914497,3.72051,2687.8,2687.7,0.04618972]
[1724716914709,3.72051,2687.8,2687.3,3.72107]
[1724716914710,3.72051,2687.8,2687.3,7.4422]
[1724716915024,3.72051,2687.8,2687.7,0.04618972]
[1724716915222,3.72051,2687.8,2687.4,0.59618972]
[1724716915437,3.72051,2687.8,2687.4,4.31724972]
[1724716915618,3.72051,2687.8,2687.4,4.27106]
[1724716915920,3.72051,2687.8,2687.5,0.04618972]
[1724716916327,7.127964,2688.1,2687.5,0.04618972]
[1724716916630,1.08704943,2688.0,2687.5,0.04618972]
[1724716917331,3.72041,2687.9,2687.5,0.04618972]
[1724716918126,6.06039,2687.8,2687.5,0.04618972]
[1724716918528,3.72075,2687.7,2687.5,0.04618972]
[1724716918762,3.72075,2687.7,2687.5,0.00898592]
[1724716918968,3.72075,2687.7,2687.5,0.04502167]
[1724716919260,3.72075,2687.7,2687.3,0.55]
[1724716919261,3.72075,2687.7,2687.6,0.04502167]
[1724716919561,3.72075,2687.7,2687.3,0.55]
[1724716919778,3.72075,2687.7,2687.6,0.04502167]
[1724716919978,3.72075,2687.7,2687.3,0.4973724]
[1724716919979,4.6854196,2687.7,2687.3,0.4973724]
[1724716920128,4.6854196,2687.7,2687.6,0.04502167]
[1724716920328,4.6854196,2687.7,2687.3,0.4973724]
[1724716920529,4.6854196,2687.7,2687.6,0.0451658]
[1724716920728,2.3398,2687.3,2686.6,3.72207]
[1724716920988,0.9646696,2687.7,2686.0,0.18618168]
[1724716920989,3.74253029,2686.8,2686.0,0.18618168]
[1724716921188,0.23398,2687.2,2686.0,0.18618168]
[1724716921189,3.72244,2686.5,2686.0,0.18618168]
[1724716921471,2.3398,2686.3,2686.0,0.18618168]
[1724716921832,2.3398,2686.6,2685.5,3.72365]
[1724716922033,2.3398,2686.6,2686.4,3.72235]
[1724716922242,2.3398,2686.6,2686.2,3.72265]
[1724716922534,2.3398,2686.6,2686.2,3.72264]
[1724716922757,2.3398,2686.6,2686.2,7.44528]
[1724716923035,3.72197,2686.8,2686.1,3.72277]
[1724716923435,3.72197,2686.8,2686.2,3.72263]
[1724716923635,3.72197,2686.8,2686.3,0.55]
[1724716923840,3.72197,2686.8,2686.3,4.27254]
[1724716924374,8.422315,2686.8,2686.3,4.27254]
[1724716924542,3.72204,2686.7,2686.3,0.55]
[1724716924737,3.72204,2686.7,2686.2,0.55]
[1724716924938,4.700315,2686.8,2686.2,4.27271]
[1724716925401,2.3398,2686.9,2686.4,3.72237]
[1724716925680,2.3398,2686.9,2686.3,3.79699628]
[1724716925840,2.3398,2686.9,2686.5,3.72221]
[1724716926039,3.72163,2687.0,2686.5,3.72221]
[1724716926648,3.72163,2687.0,2686.6,0.03607876]
[1724716926810,4.72331,2687.0,2686.6,0.03607876]
[1724716927202,8.44504,2687.0,2686.6,0.03607876]
[1724716927408,4.72331,2687.0,2686.7,0.03607876]
[1724716927805,4.72331,2687.0,2686.8,0.03607876]
[1724716928007,4.72331,2687.0,2686.5,0.55]
[1724716928350,4.72331,2687.0,2686.6,0.03607876]
[1724716928852,8.44502,2687.0,2686.6,0.03607876]
[1724716929352,4.72331,2687.0,2686.6,0.03607876]
[1724716929853,8.44503,2687.0,2686.6,0.03607876]
[1724716930059,8.44505,2687.0,2686.6,0.03607876]
[1724716930364,4.72331,2687.0,2686.6,0.03607876]
[1724716931430,8.44501,2687.0,2686.6,0.03607876]
[1724716931962,4.72331,2687.0,2686.4,4.2724]
[1724716932160,3.72163,2687.0,2686.7,0.03607876]
[1724716932313,3.72163,2687.0,2686.5,7.44444]
[1724716932518,3.72163,2687.0,2686.8,0.03607876]
[1724716932744,3.72163,2687.0,2686.5,7.44446]
[1724716933064,3.72163,2687.0,2686.5,3.72222]
[1724716933431,3.72163,2687.0,2686.6,0.03657629]
[1724716933975,0.38870042,2686.9,2686.6,0.03657629]
[1724716934930,0.38870042,2686.9,2686.6,4.98568984]
[1724716935472,0.38870042,2686.9,2686.6,8.70773984]
[1724716935619,0.38870042,2686.9,2686.7,3.722]
[1724716935820,0.38870042,2686.9,2686.8,0.55]
[1724716936222,0.38870042,2686.9,2686.8,0.58657629]
[1724716937264,0.38870042,2686.9,2686.8,0.58594878]
[1724716937611,0.38870042,2686.9,2686.8,0.03657629]
[1724716937612,12.35009331,2686.9,2686.8,0.03657629]
[1724716937814,17.23058571,2686.9,2686.8,0.03657629]
[1724716937972,17.23058571,2686.9,2685.7,3.72339]
[1724716937973,3.72266,2686.3,2685.7,3.72339]
[1724716938312,4.49634066,2686.3,2685.8,0.03340639]
[1724716938456,4.49634066,2686.3,2685.7,3.72339]
[1724716938655,4.49634066,2686.3,2685.9,0.03340639]
[1724716938886,8.21902066,2686.3,2685.7,4.706732]
[1724716939102,3.72275,2686.2,2685.5,3.72357]
[1724716939312,0.77368066,2686.3,2685.7,3.7233]
[1724716939601,4.49628066,2686.3,2685.7,3.7233]
[1724716939805,4.49628066,2686.3,2685.8,0.58258856]
[1724716939806,8.21896066,2686.3,2685.8,0.58258856]
[1724716940103,3.72277,2686.2,2685.8,0.58258856]
[1724716940254,3.72277,2686.2,2685.6,4.27355]
[1724716940459,3.72277,2686.2,2685.6,5.073266]
[1724716940661,4.49628066,2686.3,2685.7,3.7234]
[1724716940898,8.21897066,2686.3,2685.8,0.55]
[1724716941061,3.72273,2686.2,2685.8,0.55]
[1724716941515,3.72288,2686.1,2685.8,0.55]
[1724716941811,2.4093,2686.0,2685.4,3.72383]
[1724716942049,3.72314,2685.9,2685.4,3.72383]
[1724716943351,2.4093,2686.0,2685.4,7.44757]
[1724716943552,2.4093,2686.0,2685.4,8.730967]
[1724716943709,2.4093,2686.0,2685.5,0.55]
[1724716943905,6.13233,2686.0,2685.5,0.55]
[1724716944110,2.4093,2686.0,2685.5,4.2737]
[1724716945459,2.4093,2686.0,2685.5,4.27368]
[1724716945660,6.13232,2686.0,2685.5,5.2017617]
[1724716945957,6.13232,2686.0,2685.5,1.4780817]
[1724716946157,6.13232,2686.0,2685.5,0.55]
[1724716946361,3.72316,2685.9,2685.5,0.55]
[1724716946564,3.7237,2685.5,2685.2,3.0]
[1724716946782,3.7237,2685.5,2685.1,3.0]
[1724716947063,7.44749,2685.5,2684.9,3.72443]
[1724716947264,3.7237,2685.5,2684.9,7.44888]
[1724716947436,3.7237,2685.5,2684.9,3.72443]
[1724716947949,4.86793343,2685.5,2684.9,3.72443]
[1724716948151,2.4679,2685.4,2684.9,3.72443]
[1724716948354,7.46601029,2685.7,2684.8,7.38]
[1724716948355,2.4679,2685.6,2685.0,3.72438]
[1724716948783,2.4679,2685.6,2685.1,0.55]
[1724716949273,0.38923818,2685.5,2685.1,0.55]
[1724716949474,0.38923818,2685.5,2685.4,3.7238]
[1724716949767,0.38923818,2685.5,2685.4,4.2738]
[1724716950065,0.38923818,2685.5,2685.4,5.073618]
[1724716950464,0.38923818,2685.5,2685.4,1.349778]
[1724716950664,0.38923818,2685.5,2685.4,0.55]
[1724716950868,0.38923818,2685.5,2685.3,0.55]
[1724716951043,0.38923818,2685.5,2685.2,0.55]
[1724716953080,2.4679,2685.4,2685.0,3.0]
[1724716953367,2.4679,2685.4,2684.9,3.0]
[1724716953946,2.4679,2685.4,2684.9,6.7245]
[1724716954131,2.4679,2685.4,2684.9,7.43008942]
[1724716954329,2.4679,2685.4,2684.9,3.0]
[1724716954727,4.11297818,2685.5,2684.9,3.0]
[1724716954728,0.38923818,2685.5,2685.0,3.72436]
[1724716954955,0.38923818,2685.5,2685.3,3.72389]
[1724716955166,0.38923818,2685.5,2685.2,3.7241]
[1724716955665,0.38923818,2685.5,2685.1,3.72424]
[1724716957860,0.38923818,2685.5,2685.0,3.6870762]
[1724716958037,2.4679,2685.4,2684.9,3.0]
[1724716958226,3.72398,2685.3,2684.9,3.0]
[1724716958430,3.72398,2685.3,2684.8,7.38]
[1724716958767,3.72398,2685.3,2684.8,11.10466]
[1724716958943,3.72398,2685.3,2684.8,3.72466]
[1724716959536,6.19202,2685.2,2684.6,6.72484]
[1724716960480,2.4679,2685.2,2684.7,3.7247]
[1724716960841,2.4679,2685.2,2684.8,3.72458]
[1724716961849,2.4679,2685.2,2684.5,3.725]
[1724716962050,3.72434,2685.1,2684.5,7.45]
[1724716962286,2.4679,2685.2,2684.5,7.45]
[1724716962287,2.4679,2685.2,2684.6,3.72482]
[1724716962491,6.19202,2685.2,2684.6,3.72482]
[1724716963001,6.19202,2685.2,2684.6,4.469802]
[1724716963146,2.4679,2685.2,2684.7,3.7248]
[1724716964155,2.4679,2685.2,2684.8,3.72459]
[1724716965502,0.38924307,2685.3,2685.0,3.7243]
[1724716968358,0.38924307,2685.3,2685.2,3.72411]
[1724716968589,0.38924307,2685.3,2685.2,4.468945]
[1724716969053,0.38924307,2685.3,2685.2,8.193055]
[1724716969257,0.38924307,2685.3,2685.2,10.558155]
[1724716969788,2.4679,2685.8,2685.2,10.558155]
[1724716970154,6.19119,2685.8,2685.2,6.834045]
[1724716970470,2.4679,2685.5,2685.0,3.72426]
[1724716970677,2.4679,2685.5,2685.1,3.0]
[1724716972105,2.4679,2685.5,2685.1,6.72424]
[1724716972282,7.44674,2685.8,2685.2,3.72411]
[1724716972479,3.72344,2685.7,2685.2,3.72411]
[1724716972663,2.4679,2685.8,2685.4,3.7238]
[1724716973098,2.4679,2685.8,2685.2,8.729457]
[1724716973301,6.19122,2685.8,2685.2,5.005347]
[1724716973461,6.19122,2685.8,2685.2,8.729367]
[1724716973795,6.19122,2685.8,2685.2,8.6816719]
[1724716974388,6.19122,2685.8,2685.3,3.72393]
[1724716976386,9.91459,2685.8,2685.3,3.72393]
[1724716977428,6.96490066,2685.8,2685.3,3.72393]